bitfinex-derivatives/quotes_SOLF0:USTF0_20250630
["timestamp","ask_amount","ask_price","bid_price","bid_amount"]
[1751295787412,5.8882979,151.91,151.86,4.3432]
[1751295787413,6.5821,151.9,151.89,3.23656588]
[1751295788209,6.5822,151.89,151.86,46.4032]
[1751295788409,5.8882979,151.91,151.86,46.4032]
[1751295788616,6.07270956,151.93,151.86,46.4032]
[1751295788617,6.5811,151.92,151.87,3.23148322]
[1751295788816,11.96100746,151.94,151.88,6.5825]
[1751295789213,11.96100746,151.94,151.86,46.4032]
[1751295789413,11.96100746,151.94,151.87,3.22911887]
[1751295789615,11.96100746,151.94,151.86,46.4032]
[1751295789616,5.8882979,151.94,151.86,46.4032]
[1751295789816,6.5811,151.92,151.87,3.22871576]
[1751295790015,6.5811,151.92,151.86,46.4032]
[1751295790206,6.5811,151.92,151.89,6.5819]
[1751295790407,6.5813,151.91,151.86,46.4032]
[1751295790614,6.5813,151.91,151.87,3.22899412]
[1751295790806,6.5813,151.91,151.88,6.5826]
[1751295791217,6.5818,151.9,151.87,6.5828]
[1751295791517,6.5818,151.9,151.86,46.4032]
[1751295791722,5.8882979,151.9,151.87,3.22890126]
[1751295791917,5.8882979,151.88,151.81,2.2672]
[1751295792214,5.8882979,151.84,151.82,3.23055236]
[1751295792420,5.8882979,151.84,151.79,42.06]
[1751295792619,5.8882979,151.81,151.79,42.06]
[1751295792920,6.5866,151.79,151.77,46.5893]
[1751295793108,5.8882979,151.81,151.77,4.5293]
[1751295793309,5.8882979,151.81,151.77,46.5893]
[1751295793519,5.8882979,151.84,151.78,42.06]
[1751295793920,48.13270956,151.87,151.78,42.06]
[1751295794122,5.8882979,151.86,151.78,42.06]
[1751295794314,11.96100746,151.88,151.78,42.06]
[1751295794615,5.8882979,151.86,151.78,42.06]
[1751295795014,5.8882979,151.84,151.78,42.06]
[1751295795311,5.8882979,151.82,151.78,42.06]
[1751295795517,5.8882979,151.82,151.77,4.5293]
[1751295795711,6.07270956,151.86,151.77,42.06]
[1751295795920,5.8882979,151.86,151.77,42.06]
[1751295796818,5.8882979,151.84,151.77,42.06]
[1751295797019,5.8882979,151.82,151.77,42.06]
[1751295797316,42.06,151.87,151.77,42.06]
[1751295797317,5.8882979,151.8,151.77,42.06]
[1751295798725,5.8882979,151.8,151.76,2.54583]
[1751295801022,5.8882979,151.83,151.77,42.08]
[1751295801222,12.4733979,151.83,151.79,6.5863]
[1751295801522,12.4733979,151.83,151.77,42.08]
[1751295801724,52.3546979,151.87,151.77,42.08]
[1751295802322,6.5848,151.83,151.79,6.5864]
[1751295802616,52.3546979,151.87,151.77,42.08]
[1751295802617,46.4664,151.87,151.77,42.08]
[1751295802823,6.5848,151.84,151.78,5.8882979]
[1751295803020,6.5848,151.84,151.79,2.1995]
[1751295803217,5.8882979,151.88,151.81,6.5856]
[1751295803415,5.8882979,151.88,151.81,42.08]
[1751295803817,5.8882979,151.88,151.81,48.6655]
[1751295804220,5.8882979,151.88,151.81,42.08]
[1751295804714,6.5846,151.84,151.81,42.08]
[1751295805222,44.3481,151.91,151.81,42.08]
[1751295805418,5.8882979,151.89,151.81,42.08]
[1751295805922,6.5837,151.86,151.81,42.08]
[1751295806618,6.5839,151.85,151.81,42.08]
[1751295807318,6.5839,151.85,151.82,6.585]
[1751295808225,6.5836,151.86,151.83,6.5847]
[1751295808524,5.8882979,151.87,151.81,42.08]
[1751295808930,6.1273535,151.9,151.81,42.08]
[1751295809226,54.0956514,151.91,151.81,42.08]
[1751295809423,47.9682979,151.91,151.84,6.5841]
[1751295809924,6.5826,151.88,151.84,6.5843]
[1751295810118,47.9682979,151.91,151.84,6.5843]
[1751295810624,47.9682979,151.91,151.85,6.5838]
[1751295810922,47.9682979,151.91,151.81,42.08]
[1751295811127,5.8882979,151.91,151.81,42.08]
[1751295811823,6.5827,151.88,151.86,6.5835]
[1751295812026,6.5827,151.88,151.85,42.08]
[1751295812624,6.5822,151.89,151.85,42.08]
[1751295812828,5.8882979,151.91,151.85,42.08]
[1751295813030,6.582,151.9,151.87,6.5828]
[1751295813221,5.8882979,151.93,151.85,42.08]
[1751295813423,6.5815,151.91,151.88,6.5823]
[1751295813929,5.8882979,151.93,151.86,2.223]
[1751295814225,6.5822,151.89,151.86,2.223]
[1751295814629,6.5822,151.89,151.86,8.8062]
[1751295814630,6.5824,151.89,151.86,8.8062]
[1751295814922,5.8882979,151.91,151.86,2.223]
[1751295815221,5.8882979,151.91,151.85,42.08]
[1751295815416,5.8882979,151.91,151.86,6.5834]
[1751295815621,5.8882979,151.91,151.85,42.08]
[1751295815822,6.5825,151.89,151.85,48.6637]
[1751295816023,5.8882979,151.91,151.85,48.6637]
[1751295816328,6.5825,151.89,151.85,48.6637]
[1751295817128,6.5825,151.89,151.86,6.5834]
[1751295817526,6.5819,151.9,151.86,6.5834]
[1751295817926,5.8882979,151.91,151.86,6.5834]
[1751295818131,6.5825,151.89,151.85,48.6636]
[1751295818625,5.8882979,151.91,151.85,42.08]
[1751295818822,5.8882979,151.87,151.81,2.223]
[1751295819029,5.8882979,151.87,151.81,43.943]
[1751295819328,5.8882979,151.87,151.82,6.5849]
[1751295819524,5.8882979,151.88,151.81,43.943]
[1751295819722,8.0392979,151.9,151.84,6.5841]
[1751295820124,5.8882979,151.86,151.81,41.72]
[1751295820322,8.0392979,151.9,151.77,41.72]
[1751295820323,5.8882979,151.82,151.77,41.72]
[1751295820628,5.8882979,151.8,151.77,41.72]
[1751295820824,12.4745979,151.8,151.77,48.3071]
[1751295821024,5.8882979,151.82,151.77,41.72]
[1751295821224,5.8882979,151.84,151.77,41.72]
[1751295821829,6.585,151.83,151.79,6.5865]
[1751295822226,6.5835,151.86,151.83,6.5845]
[1751295822425,6.5835,151.86,151.77,41.72]
[1751295822426,5.8882979,151.86,151.77,41.72]
[1751295822626,5.8882979,151.86,151.77,47.6082979]
[1751295822823,12.4718979,151.86,151.82,6.5849]
[1751295823223,6.5844,151.84,151.81,6.5854]
[1751295823429,5.8882979,151.86,151.77,41.72]
[1751295823630,5.8882979,151.84,151.77,41.72]
[1751295824327,6.5859,151.81,151.78,6.5867]
[1751295824522,5.8882979,151.84,151.77,41.72]
[1751295824723,41.72,151.87,151.77,41.72]
[1751295824928,5.8882979,151.83,151.77,41.72]
[1751295825129,47.6082979,151.87,151.77,41.72]
[1751295825324,6.5841,151.85,151.82,6.5851]
[1751295825822,6.5824,151.89,151.86,6.5834]
[1751295826024,5.8882979,151.92,151.84,41.72]
[1751295826231,5.8882979,151.92,151.85,43.917]
[1751295826430,5.8882979,151.92,151.86,6.5832]
[1751295826431,6.5823,151.89,151.86,6.5832]
[1751295826833,5.8882979,151.92,151.86,6.5832]
[1751295827134,5.8882979,151.92,151.85,50.5007]
[1751295827831,6.5826,151.89,151.85,50.5007]
[1751295828426,6.5827,151.88,151.85,43.917]
[1751295828824,6.5827,151.88,151.85,50.5006]
[1751295829328,6.5831,151.87,151.85,43.917]
[1751295829831,6.5833,151.87,151.85,41.72]
[1751295830131,8.3488535,151.93,151.85,41.72]
[1751295830330,6.5825,151.89,151.85,41.72]
[1751295830630,5.8882979,151.91,151.85,41.72]
[1751295831827,6.5824,151.89,151.86,6.5835]
[1751295832530,6.5819,151.9,151.87,6.5829]
[1751295832833,5.8882979,151.94,151.85,41.72]
[1751295833033,6.5812,151.92,151.88,6.5823]
[1751295833229,6.5812,151.92,151.86,2.2011]
[1751295833428,6.5817,151.9,151.87,6.5828]
[1751295833833,5.8882979,151.93,151.86,2.2011]
[1751295834028,5.8882979,151.91,151.86,2.2011]
[1751295834931,6.5824,151.89,151.86,2.2011]
[1751295835540,6.5812,151.92,151.88,6.5823]
[1751295835835,53.7356514,151.95,151.88,6.5823]
[1751295836234,5.8882979,151.93,151.86,8.7844]
[1751295836433,5.8882979,151.93,151.86,2.2011]
[1751295836627,5.8882979,151.91,151.86,2.2011]
[1751295837433,5.8882979,151.91,151.85,48.3038]
[1751295838026,5.8882979,151.87,151.82,2.2429]
[1751295838231,6.1273535,151.92,151.79,592.66]
[1751295838232,5.8882979,151.85,151.8,41.72]
[1751295838634,6.5846,151.84,151.81,6.5853]
[1751295839036,5.8882979,151.85,151.81,6.5853]
[1751295839237,41.72,151.91,151.85,6.5835]
[1751295839429,5.8882979,151.9,151.85,6.5835]
[1751295839628,41.72,151.91,151.84,41.72]
[1751295840238,6.5822,151.89,151.85,6.5837]
[1751295840535,5.8882979,151.92,151.84,41.72]
[1751295840839,6.5817,151.91,151.85,2.2757]
[1751295841138,5.8882979,151.94,151.85,2.2757]
[1751295841328,5.8882979,151.94,151.86,4.5204]
[1751295841533,6.581,151.92,151.89,6.5822]
[1751295842036,6.5814,151.91,151.88,6.5824]
[1751295842732,41.72,151.95,151.88,41.72]
[1751295842934,5.8882979,151.96,151.88,41.72]
[1751295843138,12.0156514,151.98,151.88,41.72]
[1751295843535,6.5802,151.94,151.91,6.5811]
[1751295844035,6.5802,151.94,151.88,41.72]
[1751295844438,6.5805,151.93,151.88,41.72]
[1751295844636,12.0156514,151.98,151.89,6.582]
[1751295845141,5.8882979,151.96,151.88,41.72]
[1751295845342,12.0156514,151.97,151.88,41.72]
[1751295845543,5.8882979,151.97,151.88,41.72]
[1751295845741,6.5808,151.93,151.89,6.5819]
[1751295845941,5.8882979,151.97,151.89,6.5819]
[1751295846338,5.8882979,151.95,151.88,41.72]
[1751295846543,54.8764,151.99,151.88,41.72]
[1751295846544,5.8882979,151.93,151.88,41.72]
[1751295846844,6.5822,151.89,151.88,41.72]
[1751295847341,5.8882979,151.91,151.81,41.32]
[1751295847342,6.1273535,151.91,151.81,41.32]
[1751295847545,5.8882979,151.9,151.83,6.5846]
[1751295847746,5.8882979,151.9,151.82,2.1147]
[1751295848346,6.5831,151.87,151.84,6.5842]
[1751295848546,5.8882979,151.9,151.82,2.1147]
[1751295848747,5.8882979,151.9,151.83,6.5844]
[1751295848946,5.8882979,151.9,151.82,2.1147]
[1751295849143,6.5832,151.87,151.82,2.1147]
[1751295849449,5.8882979,151.9,151.82,2.1147]
[1751295849650,6.5829,151.88,151.82,2.1147]
[1751295849851,6.5829,151.88,151.85,6.5837]
[1751295850048,5.8882979,151.9,151.85,41.3]
[1751295850448,5.8882979,151.92,151.85,41.3]
[1751295851054,5.8882979,151.92,151.86,6.5833]
[1751295851452,6.5821,151.9,151.86,6.5833]
[1751295851854,6.5821,151.9,151.87,6.583]
[1751295852152,6.5821,151.9,151.85,41.3]
[1751295852352,5.8882979,151.92,151.85,41.3]
[1751295852553,5.8882979,151.9,151.85,41.3]
[1751295852756,6.1273535,151.93,151.85,41.3]
[1751295852955,5.8882979,151.95,151.85,47.1882979]
[1751295853454,6.5811,151.92,151.88,6.5823]
[1751295853648,6.5811,151.92,151.85,47.18276122]
[1751295853848,8.06056122,151.96,151.85,47.18276122]
[1751295854544,8.06056122,151.96,151.85,41.3]
[1751295854753,5.88276122,151.94,151.85,41.3]
[1751295854955,5.88276122,151.92,151.85,41.3]
[1751295855149,5.88276122,151.94,151.85,41.3]
[1751295855649,6.5815,151.91,151.88,6.5824]
[1751295856056,5.88276122,151.94,151.88,6.5824]
[1751295856357,6.5811,151.92,151.88,6.5824]
[1751295856958,6.5811,151.92,151.89,6.5821]
[1751295857152,6.5806,151.93,151.85,47.18276122]
[1751295857358,41.32,151.95,151.85,47.18276122]
[1751295857553,2.1778,151.96,151.85,47.18276122]
[1751295857761,6.5802,151.94,151.85,47.18276122]
[1751295858054,6.1273535,151.98,151.87,5.88276122]
[1751295858358,55.66531472,151.99,151.89,5.88276122]
[1751295858660,55.66531472,151.99,151.9,41.32]
[1751295859060,55.66531472,151.99,151.91,6.581]
[1751295859760,6.5798,151.95,151.91,6.581]
[1751295860055,6.5798,151.95,151.92,6.5808]
[1751295860659,6.5798,151.95,151.91,6.581]
[1751295860858,5.88106706,151.96,151.9,41.32]
[1751295861064,5.88106706,151.96,151.91,6.5813]
[1751295861358,5.88106706,151.96,151.9,41.32]
[1751295861556,12.00842056,151.98,151.9,41.32]
[1751295861759,12.00842056,151.98,151.91,6.5811]
[1751295861962,6.5798,151.95,151.91,6.5811]
[1751295862356,6.5798,151.95,151.92,6.5809]
[1751295862558,6.5793,151.96,151.9,41.32]
[1751295862960,6.1273535,152.01,151.91,5.88106706]
[1751295863261,5.88106706,152.02,151.91,5.88106706]
[1751295863449,5.88106706,152.02,151.94,6.5796]
[1751295863655,5.88106706,152.02,151.95,41.3]
[1751295864160,6.5781,151.99,151.95,41.3]
[1751295864355,5.88106706,152.02,151.95,41.3]
[1751295864557,6.5782,151.99,151.95,47.8794]
[1751295865054,6.5781,151.99,151.95,47.8794]
[1751295865659,5.88106706,152.02,151.95,41.3]
[1751295866054,6.5785,151.98,151.95,41.3]
[1751295866256,5.88106706,152.02,151.95,41.3]
[1751295866856,5.88106706,152.0,151.95,41.3]
[1751295867063,4.36576868,152.02,151.97,6.5784]
[1751295867263,4.36576868,152.02,151.95,45.8452]
[1751295867556,4.36576868,152.04,151.95,51.72626706]
[1751295867760,4.36576868,152.05,151.95,51.72626706]
[1751295867959,4.36537654,152.04,151.95,51.72626706]
[1751295868161,4.36537654,152.05,151.99,6.5776]
[1751295868355,6.5764,152.03,151.99,41.3]
[1751295868961,6.5766,152.02,151.99,41.3]
[1751295869764,5.88106706,152.05,151.99,41.3]
[1751295870067,4.36537654,152.05,151.99,41.3]
[1751295870264,5.88106706,152.04,151.99,41.3]
[1751295870862,6.5768,152.02,151.99,47.8778]
[1751295871366,5.88106706,152.04,151.95,8.08656706]
[1751295871569,8.77647654,152.06,151.95,8.08656706]
[1751295871570,4.36537654,152.05,151.96,41.3]
[1751295871964,10.2464436,152.06,151.97,5.88106706]
[1751295872167,10.2464436,152.06,151.96,41.3]
[1751295872465,10.2464436,152.06,151.96,43.4141]
[1751295872763,5.88106706,152.04,151.96,43.4141]
[1751295873658,4.36537654,152.06,151.96,43.4141]
[1751295873860,5.88106706,152.04,151.96,43.4141]
[1751295874061,10.54935252,152.09,151.96,49.993]
[1751295874062,6.5781,151.99,151.96,49.993]
[1751295874264,5.88106706,152.0,151.96,41.3]
[1751295874662,4.36537654,152.05,151.96,41.3]
[1751295874663,5.88106706,152.02,151.96,41.3]
[1751295875466,5.88106706,152.02,151.96,47.8789]
[1751295875671,5.88106706,152.0,151.96,41.3]
[1751295875971,6.5782,151.99,151.96,47.8789]
[1751295876171,5.88106706,152.0,151.96,41.3]
[1751295876867,5.88106706,151.98,151.91,40.86]
[1751295877068,6.5794,151.96,151.92,6.5808]
[1751295877271,5.88106706,151.96,151.88,592.46]
[1751295877571,5.88106706,151.96,151.9,40.86]
[1751295877770,6.5802,151.94,151.91,6.5811]
[1751295877961,5.88106706,151.94,151.88,633.32]
[1751295878170,5.88106706,151.97,151.88,633.32]
[1751295878366,5.88106706,151.91,151.88,40.86]
[1751295878572,5.88106706,151.91,151.8,592.2]
[1751295878770,5.88106706,151.91,151.82,6.5022]
[1751295878971,6.5824,151.89,151.82,6.5022]
[1751295879165,6.5824,151.89,151.82,2.2317]
[1751295879366,6.5827,151.88,151.84,6.5843]
[1751295879770,5.88106706,151.89,151.83,40.86]
[1751295879970,12.46366706,151.89,151.83,40.86]
[1751295880166,5.88106706,151.87,151.82,40.88]
[1751295880576,5.88106706,151.87,151.8,592.2]
[1751295880777,5.88106706,151.87,151.8,633.08]
[1751295880971,4.36537654,151.93,151.8,633.08]
[1751295881176,5.88106706,151.91,151.81,4.3381]
[1751295881377,5.88106706,151.91,151.81,10.21916706]
[1751295881581,12.46246706,151.91,151.87,6.583]
[1751295881773,5.88106706,151.89,151.84,40.88]
[1751295882084,5.88106706,151.89,151.85,6.5836]
[1751295882278,40.88,151.92,151.84,40.88]
[1751295882473,46.76106706,151.92,151.84,40.88]
[1751295882670,5.88106706,151.9,151.84,40.88]
[1751295883180,12.46296706,151.9,151.84,40.88]
[1751295883584,5.88106706,151.88,151.81,40.88]
[1751295884078,6.5832,151.87,151.81,40.88]
[1751295884781,5.88106706,151.91,151.81,46.76106706]
[1751295884980,6.1273535,151.97,151.81,40.88]
[1751295885279,6.1273535,151.97,151.82,19.24182912]
[1751295885280,5.88106706,151.97,151.82,19.24182912]
[1751295885476,5.88106706,151.95,151.86,5.88106706]
[1751295885782,45.454,152.01,151.87,47.8047]
[1751295885783,5.88106706,151.97,151.87,47.8047]
[1751295885981,5.88106706,151.95,151.88,40.88]
[1751295886375,5.88106706,151.95,151.9,6.5817]
[1751295886878,5.88106706,151.93,151.85,40.88]
[1751295887177,5.88106706,151.89,151.85,40.88]
[1751295887381,5.88106706,151.87,151.79,40.88]
[1751295887774,5.88106706,151.87,151.83,6.5845]
[1751295887972,6.1273535,151.92,151.78,40.88]
[1751295888177,5.88862278,151.89,151.79,10.39702278]
[1751295888480,5.8884458,151.88,151.79,4.5084]
[1751295888974,6.5833,151.87,151.84,6.5841]
[1751295889171,5.8884458,151.88,151.79,4.5084]
[1751295889574,6.5835,151.86,151.83,6.5845]
[1751295889774,40.88,151.91,151.82,40.88]
[1751295889775,5.8884458,151.9,151.82,40.88]
[1751295889975,6.9299,151.94,151.82,46.7684458]
[1751295890281,10.4817458,151.94,151.84,5.8884458]
[1751295890482,10.4817458,151.94,151.85,4.4528]
[1751295890880,6.5808,151.93,151.85,4.4528]
[1751295891088,10.4817458,151.94,151.85,4.4528]
[1751295891287,5.8884458,151.98,151.88,5.8884458]
[1751295891486,6.5798,151.95,151.92,6.5808]
[1751295891676,5.8884458,151.98,151.9,40.88]
[1751295891882,5.8884458,151.98,151.9,46.7684458]
[1751295892182,49.0216458,152.0,151.9,46.7684458]
[1751295892384,49.0216458,152.0,151.91,2.1126]
[1751295893581,6.579,151.97,151.94,6.5797]
[1751295893886,49.0216458,152.0,151.91,2.1126]
[1751295894087,49.0216458,152.0,151.92,6.5807]
[1751295894088,6.5795,151.96,151.92,6.5807]
[1751295894284,49.0216458,152.0,151.91,2.1126]
[1751295894480,49.0216458,152.0,151.94,6.5797]
[1751295894481,6.5788,151.97,151.94,6.5797]
[1751295894682,43.1332,152.0,151.92,5.8884458]
[1751295894881,2.2565,152.01,151.92,5.8884458]
[1751295895084,6.5785,151.98,151.95,6.5793]
[1751295895388,2.2565,152.01,151.94,46.7684458]
[1751295895583,6.5781,151.99,151.96,6.5788]
[1751295895790,5.8884458,152.02,151.96,6.5788]
[1751295895980,5.8884458,152.02,151.94,46.7684458]
[1751295896186,6.5782,151.99,151.95,6.5796]
[1751295896884,6.5782,151.99,151.94,46.7684458]
[1751295896885,6.5783,151.98,151.94,53.3482458]
[1751295897080,5.8884458,152.02,151.94,40.88]
[1751295897284,6.579,151.97,151.94,40.88]
[1751295898089,6.5792,151.96,151.94,40.88]
[1751295899483,5.8884458,151.98,151.9,6.5816]
[1751295899789,5.8884458,151.98,151.9,40.88]
[1751295899992,6.5802,151.94,151.9,40.88]
[1751295900183,5.8884458,151.96,151.9,40.88]
[1751295900589,6.5803,151.94,151.91,6.5812]
[1751295900895,46.7684458,151.99,151.91,5.8884458]
[1751295901289,6.5789,151.97,151.91,5.8884458]
[1751295901592,46.7684458,151.99,151.91,5.8884458]
[1751295901793,6.5787,151.97,151.94,6.5797]
[1751295902188,5.8884458,152.03,151.94,40.88]
[1751295902596,5.8884458,152.03,151.95,4.6269]
[1751295902996,6.5776,152.0,151.97,6.5784]
[1751295903196,5.8884458,152.03,151.95,4.6269]
[1751295903397,5.8884458,151.99,151.92,40.88]
[1751295903592,6.5785,151.98,151.94,6.5797]
[1751295903986,5.8884458,151.99,151.92,40.88]
[1751295904192,5.8884458,151.97,151.88,6.8201]
[1751295904400,40.88,152.02,151.88,6.8201]
[1751295904401,5.8884458,151.95,151.89,40.88]
[1751295904590,6.5809,151.92,151.89,47.462]
[1751295905292,6.5809,151.92,151.9,6.5817]
[1751295905597,6.5806,151.93,151.89,40.88]
[1751295906191,6.5806,151.93,151.9,6.5815]
[1751295906392,5.8884458,151.96,151.89,40.88]
[1751295906788,6.5807,151.93,151.89,40.88]
[1751295907394,6.5807,151.93,151.9,6.5815]
[1751295907594,40.88,151.98,151.89,40.88]
[1751295907796,5.8884458,151.97,151.92,6.5806]
[1751295907997,5.8884458,151.97,151.89,40.88]
[1751295908894,6.5794,151.96,151.89,46.7684458]
[1751295909091,5.8884458,151.97,151.89,40.88]
[1751295909499,5.8884458,151.97,151.92,6.5807]
[1751295909999,5.8884458,151.97,151.89,40.88]
[1751295910193,5.8884458,151.97,151.9,6.5816]
[1751295910394,5.8884458,151.95,151.89,40.88]
[1751295910790,6.5788,151.97,151.89,46.7684458]
[1751295911498,5.8884458,151.95,151.83,611.70172912]
[1751295911691,5.8884458,151.95,151.85,10.4173458]
[1751295912501,6.5811,151.92,151.84,8.1234458]
[1751295912801,5.8884458,151.91,151.86,40.5]
[1751295914203,6.5825,151.89,151.86,40.5]
[1751295914701,6.1273535,151.99,151.88,5.8828115]
[1751295914905,5.8828115,151.99,151.9,5.8828115]
[1751295915105,5.8828115,151.99,151.91,42.8284]
[1751295915301,5.8828115,151.99,151.93,6.5801]
[1751295915605,5.88035382,151.98,151.91,42.8284]
[1751295915999,6.5799,151.95,151.92,6.5807]
[1751295916303,5.88035382,151.98,151.91,42.8284]
[1751295916505,6.5799,151.95,151.91,49.4095]
[1751295916704,5.88035382,151.98,151.91,49.4095]
[1751295917006,5.88035382,151.94,151.91,40.5]
[1751295917199,5.88035382,151.94,151.88,40.5]
[1751295917400,5.88035382,151.92,151.88,40.5]
[1751295917596,6.582,151.9,151.88,40.5]
[1751295917902,5.88035382,151.92,151.88,40.5]
[1751295918404,6.5819,151.9,151.88,40.5]
[1751295918700,6.5815,151.91,151.88,47.0825]
[1751295919407,6.5818,151.9,151.88,40.5]
[1751295919607,5.88035382,151.91,151.88,40.5]
[1751295919907,5.88035382,151.91,151.85,42.8427]
[1751295920405,5.88035382,151.89,151.85,40.5]
[1751295921004,40.5,151.94,151.85,40.5]
[1751295921208,5.88035382,151.92,151.85,40.5]
[1751295921407,6.5819,151.9,151.87,6.5827]
[1751295921708,2.2074,151.97,151.85,40.5]
[1751295921709,12.00706506,152.0,151.89,5.87971156]
[1751295922007,6.5785,151.98,151.94,6.5798]
[1751295922303,5.87971156,152.0,151.94,6.5798]
[1751295922511,12.00706506,152.0,151.94,6.5798]
[1751295922807,12.00706506,152.0,151.9,47.3887]
[1751295923209,6.5785,151.98,151.92,6.5806]
[1751295923401,5.87971156,151.98,151.9,40.5]
[1751295923801,6.5795,151.96,151.91,6.5813]
[1751295924003,5.87971156,151.96,151.9,40.5]
[1751295924406,5.87971156,151.92,151.83,592.46]
[1751295924704,5.87971156,151.9,151.84,40.5]
[1751295925410,5.87971156,151.9,151.84,47.0841]
[1751295925411,6.5827,151.88,151.84,47.0841]
[1751295925611,5.87971156,151.9,151.84,47.0841]
[1751295925909,5.87971156,151.9,151.84,40.5]
[1751295926113,6.5824,151.89,151.86,6.5834]
[1751295926306,53.2908535,151.95,151.86,6.5834]
[1751295926500,6.582,151.9,151.86,6.5834]
[1751295926704,6.582,151.9,151.87,6.5829]
[1751295926899,5.87971156,151.88,151.82,6.936]
[1751295927705,5.87971156,151.88,151.82,4.6824]
[1751295927913,5.87971156,151.88,151.82,2.341]
[1751295928307,6.5847,151.84,151.8,47.0859]
[1751295928509,6.5847,151.84,151.8,40.5]
[1751295928811,12.46331156,151.86,151.83,6.5846]
[1751295929110,5.87971156,151.86,151.8,40.5]
[1751295929306,6.5832,151.87,151.8,40.5]
[1751295929811,6.5832,151.87,151.83,6.5845]
[1751295930104,6.5836,151.86,151.83,6.5845]
[1751295930311,5.87971156,151.88,151.83,6.5845]
[1751295930514,12.46261156,151.88,151.84,6.5843]
[1751295930711,6.1273535,151.94,151.85,40.5]
[1751295930908,12.54321156,151.95,151.85,42.8338]
[1751295931213,6.5807,151.93,151.86,4.5884]
[1751295931408,6.5807,151.93,151.89,6.5818]
[1751295931713,5.87971156,151.93,151.86,4.5884]
[1751295932212,6.5815,151.91,151.88,6.5825]
[1751295932416,8.2924535,151.99,151.89,40.5]
[1751295932716,5.87971156,152.0,151.9,5.87971156]
[1751295933012,5.87971156,151.96,151.89,40.5]
[1751295933211,6.5798,151.95,151.91,6.5813]
[1751295933412,6.5798,151.95,151.89,40.5]
[1751295933810,6.5798,151.95,151.92,6.5808]
[1751295934316,5.87971156,151.96,151.89,40.5]
[1751295934916,6.1273535,151.99,151.89,46.37971156]
[1751295935212,5.87971156,152.0,151.91,5.87971156]
[1751295935512,10.40931156,152.02,151.92,2.2775]
[1751295935718,10.40931156,152.02,151.93,40.5]
[1751295936616,6.5781,151.99,151.95,6.5793]
[1751295936915,10.40931156,152.02,151.95,6.5793]
[1751295937116,6.5781,151.99,151.95,6.5793]
[1751295937518,5.87971156,151.98,151.93,40.5]
[1751295937720,6.5794,151.96,151.93,40.5]
[1751295937916,5.87971156,151.96,151.93,40.5]
[1751295938114,5.87971156,151.96,151.91,6.5812]
[1751295938312,5.87971156,151.96,151.91,46.7612]
[1751295938618,12.45951156,151.95,151.91,46.7612]
[1751295938821,5.87971156,151.95,151.92,6.5807]
[1751295939118,5.87971156,151.95,151.91,40.18]
[1751295939314,5.87971156,151.93,151.84,40.18]
[1751295939524,5.87971156,151.9,151.85,40.18]
[1751295939714,5.87971156,151.9,151.88,6.5823]
[1751295940721,5.87971156,151.9,151.87,6.5829]
[1751295940921,5.87971156,151.9,151.86,40.18]
[1751295941222,4.5275,151.95,151.86,40.18]
[1751295941427,5.87971156,151.92,151.86,40.18]
[1751295943527,6.5816,151.91,151.86,40.18]
[1751295943921,6.5817,151.9,151.87,6.5828]
[1751295944929,6.5823,151.89,151.86,46.7635]
[1751295945128,6.5823,151.89,151.86,40.18]
[1751295945333,5.87971156,151.9,151.86,40.18]
[1751295945723,12.46171156,151.9,151.86,46.7632]
[1751295945920,6.582,151.9,151.86,46.7632]
[1751295946324,5.87971156,151.87,151.83,40.18]
[1751295946832,6.5842,151.85,151.83,40.18]
[1751295947027,6.5842,151.85,151.81,13.1585]
[1751295947028,5.87971156,151.87,151.81,6.573]